Cogmind - Beta 9.4 @@@ ROGUE MODE // 2020.03.25 @ 01:35:47 // Winter2019/RPGLIKE Player: IAMCRAIG Result: Destroyed by S-10 Pest with Light Assault Rifle Performance ------------- Evolutions (0) 0 Regions Visited (1) 200 Robots Destroyed (6) 30 Value Destroyed (62) 62 Prototype IDs (3) 60 Alien Tech Used (0) 0 Bonus (0) 0 TOTAL SCORE: 352 Bonus ------- None Cogmind --------- Core Integrity 0/600 Matter 290/300 Energy 235/250 System Corruption 0% Temperature Cool (0) Movement Treading (160) Location -10/Materials Parts ------- > --- POWER (1) -------- Ion Engine > --- PROPULSION (4) --- Light Treads Wheel Wheel Wheel > --- UTILITY (2) ------ Improved Terrain Scanner Seismic Analyzer > --- WEAPON (1) ------- (None) > --- INVENTORY (0) ---- (None) Peak State ------------ > --- POWER ------------ Light Ion Engine > --- PROPULSION ------- Light Treads Wheel Wheel Wheel > --- UTILITY ---------- Improved Terrain Scanner Seismic Analyzer > --- WEAPON ----------- EM Pulse Gun > --- INVENTORY -------- (None) [Rating: 9] Favorites ----------- Power Light Ion Engine Engine Light Ion Engine Propulsion Wheel Treads Light Treads Leg Aluminum Leg Wheel Wheel Utility Improved Terrain Scanner Device Improved Terrain Scanner Processor Seismic Analyzer Weapon Welding Torch Energy Gun EM Pulse Gun Ballistic Gun Assault Rifle Special Weapon Welding Torch Build | -11 -10 ------- Run | Scr Mat Slots Evolved 4 | 4 . Power . | . . Propulsion 3 | 3 . Utility 1 | 1 . Weapon . | . . Parts Attached 17 | 14 3 Power 2 | 1 1 Engine 2 | 1 1 Core . | . . Reactor . | . . Propulsion 8 | 7 1 Treads 3 | 2 1 Leg 1 | 1 . Wheel 4 | 4 . Hover . | . . Flight . | . . Utility 3 | 3 . Device 1 | 1 . Storage . | . . Processor 2 | 2 . Hackware . | . . Protection . | . . Artifact . | . . Weapon 4 | 3 1 Energy Gun 1 | 1 . Energy Cannon . | . . Ballistic Gun 1 | 1 . Ballistic Cannon . | . . Launcher . | . . Special Weapon 2 | 1 1 Impact Weapon . | . . Slashing Weapon . | . . Piercing Weapon . | . . Special Melee Weapon . | . . Unidentified Prototypes . | . . Parts Lost 1 | . 1 Power . | . . Propulsion . | . . Utility . | . . Weapon 1 | . 1 Highest Loss Streak 1 | . 1 Average Slot Usage (%) 99 | . 99 Engine 11 | . 11 Treads 12 | . 12 Wheel 37 | . 37 Device 12 | . 12 Processor 12 | . 12 Special Weapon 11 | . 11 Naked Turns . | . . Heaviest Build 7 | 6 7 Greatest Support 30 | 30 30 Greatest Overweight (x) . | . . Average Overweight (x) . | . . Largest Inventory Capacity . | . . Average Capacity . | . . Most Carried . | . . Average Carried . | . . Final Capacity . | . . Final Carried . | . . Class Distribution -------------------- 100% | Scavenger-Mutant Dominant Class ---------------- Scavenger-Mutant | -10/Materials Resources | -11 -10 ----------- Run | Scr Mat Matter Collected 348 | 340 8 Remotely . | . . Salvage Created 222 | 162 60 Parts 14 | 11 3 Haulers Intercepted . | . . Recyclers Shooed 1 | . 1 Parts Field Recycled . | . . Retrieved Matter . | . . Parts Self-Destructed . | . . Prevented . | . . Kills | -11 -10 ------- Run | Scr Mat Combat Hostiles Destroyed 1 | . 1 Cannons 1 | . 1 Classes Destroyed 4 | 3 1 Worker 1 | 1 . Tunneler 3 | 3 . Recycler 1 | 1 . Grunt 1 | . 1 Best Kill Streak 3 | 3 1 Combat Bots Only 1 | . 1 Max Kills in Single Turn 1 | 1 1 Gunslinging . | . . Exploded . | . . Melee . | . . Uniques/NPCs Destroyed . | . . Combat | -11 -10 -------- Run | Scr Mat Damage Taken 743 | . 743 Core 603 | . 603 Absorbed by Shields . | . . Redirected to Core 420 | . 420 Core Remaining (%) 100 | 100 . Volleys Fired 42 | 19 23 Largest 1 | 1 1 Hottest 100 | 100 100 Shots Fired 42 | 19 23 Gun 15 | 15 . Cannon . | . . Launcher . | . . Special 27 | 4 23 Kinetic . | . . Thermal 27 | 4 23 Explosive . | . . Electromagnetic 15 | 15 . Robot Hit Streak 5 | 5 4 Robot Miss Streak 1 | 1 1 Penetration Max . | . . Secondary Targets . | . . Shots Hit Robots 31 | 15 16 Core Hits 11 | 6 5 Critical Hits . | . . Critical Kills . | . . Critical Parts Destroyed . | . . Melee Attacks . | . . Impact . | . . Slashing . | . . Piercing . | . . Sneak Attacks . | . . Combat Hostiles . | . . Follow-up Attacks . | . . Damage Inflicted 352 | 246 106 Guns 174 | 174 . Cannons . | . . Explosions . | . . Melee . | . . Ramming 7 | . 7 Kinetic . | . . Thermal 171 | 72 99 Explosive . | . . Electromagnetic 174 | 174 . Impact . | . . Slashing . | . . Piercing . | . . Highest Corruption . | . . Average Corruption . | . . Corruption Purged . | . . Overload Shots . | . . Overflow Damage 8 | . 8 Projectiles 8 | . 8 Explosions . | . . Melee . | . . Knockbacks . | . . Impact . | . . Kinetic . | . . Secondary . | . . Self-Inflicted Damage . | . . Shots . | . . Rammed 5 | . 5 Targets Rammed 5 | . 5 Kicked . | . . Crushed . | . . Highest Temperature 20 | 20 20 Average Temperature 12 | 12 11 Received Heat Transfer 222 | . 222 Siege Activations . | . . Robots Corrupted . | . . Combat Hostiles . | . . Parts Fried 1 | 1 . Impact Corruptions . | . . Robots Melted . | . . Combat Hostiles . | . . Parts Melted . | . . Heat Transferred 650 | 150 500 Parts Sabotaged . | . . Parts Stolen . | . . Parts Stripped . | . . Power Chain Reactions . | . . Missiles Intercepted . | . . Alert | -11 -10 ------- Run | Scr Mat Peak Influence 56 | 25 56 Average Influence 27 | 13 34 Maximum Alert Level . | . . Low Security (%) 100 | 100 100 Level 1 . | . . Level 2 . | . . Level 3 . | . . Level 4 . | . . Level 5 . | . . High Security . | . . Max Security . | . . Squads Dispatched 1 | . 1 Investigation . | . . Extermination . | . . Reinforcement 1 | . 1 Assault . | . . Garrison . | . . Intercept . | . . Construction Impeded . | . . Haulers Reinforced . | . . Stealth | -11 -10 --------- Run | Scr Mat Distress Signals . | . . Communications Jammed . | . . Distress Signals . | . . Times Spotted 15 | . 15 Peak Tracking Total 9 | . 9 Tactical Retreats 2 | . 2 Traps | -11 -10 ------- Run | Scr Mat Traps Triggered 1 | . 1 Indirectly . | . . Trap Hack Attempts . | . . Triggered . | . . Disarmed . | . . Reprogrammed . | . . Reused . | . . Traps Extracted . | . . Installed . | . . Triggered . | . . Machines | -11 -10 ---------- Run | Scr Mat Machines Disabled . | . . Max in Single Turn . | . . Machines Sabotaged . | . . Garrisons Compromised . | . . Overloaded Fab Kills . | . . Fab Network Shutdowns . | . . Hacking | -11 -10 --------- Run | Scr Mat Machines Accessed 6 | . 6 Terminals 4 | . 4 Fabricators . | . . Repair Stations . | . . Recycling Units 2 | . 2 Scanalyzers . | . . Garrison Access . | . . Total Hacks 27 | . 27 Successful 19 | . 19 Failed 8 | . 8 Catastrophic . | . . Database Lockouts . | . . Manual 16 | . 16 Terminals 22 | . 22 Fabricators . | . . Repair Stations . | . . Recycling Units 5 | . 5 Scanalyzers . | . . Garrison Access . | . . Terminal Hacks 10 | . 10 Robot Analysis 2 | . 2 Prototype ID Bank 3 | . 3 Alert Level 1 | . 1 Locate Traps 2 | . 2 Hauler Manifests 1 | . 1 Registered Components 1 | . 1 Fabricator Hacks . | . . Repair Station Hacks . | . . Recycling Unit Hacks 2 | . 2 Report Inventory 1 | . 1 Retrieve Components 1 | . 1 Scanalyzer . | . . Garrison Access Hacks . | . . Unauthorized Hacks 16 | . 16 Terminals 5 | . 5 Botnet 4 | . 4 Operators 1 | . 1 Fabricators . | . . Repair Stations . | . . Recycling Units 2 | . 2 Monitor 1 | . 1 Reject 1 | . 1 Scanalyzers . | . . Garrison Access . | . . Data Cores Recovered . | . . Used . | . . Hacking Detections 5 | . 5 Full Trace Events . | . . Feedback Events . | . . Feedback Blocked . | . . Robot Schematics Acquired . | . . Robots Built . | . . Matter . | . . Time . | . . Total Robot Build Rating . | . . Part Schematics Acquired . | . . Parts Built . | . . Matter . | . . Time . | . . Total Part Build Rating . | . . Parts Repaired . | . . Time . | . . Parts Recycled . | . . Recycled Matter . | . . Retrieved Matter . | . . Retrieved Components . | . . Parts Scanalyzed . | . . Part Schematics Acquired . | . . Parts Damaged . | . . Bothacking | -11 -10 ------------ Run | Scr Mat Used RIF Installer . | . . Robots Hacked . | . . Non-combat . | . . Combat . | . . Robot Hacks Applied . | . . Relay Couplers Released . | . . Robots Rewired . | . . Allies Hacked . | . . Hacks Repelled . | . . Allies | -11 -10 -------- Run | Scr Mat Total Allies . | . . Largest Group . | . . Highest-Rated Group . | . . Highest-Rated Ally . | . . Total Orders . | . . Ally Attacks . | . . Total Damage . | . . Kills . | . . Allies Corrupted . | . . Allies Melted . | . . Intel | -11 -10 ------- Run | Scr Mat Robot Analysis Total 2 | . 2 Derelict Logs Recovered . | . . Drone Launches . | . . Drone Recoveries . | . . Exploration | -11 -10 ------------- Run | Scr Mat Turns Passed 531 | 183 348 Spaces Moved 489 | 143 346 Core 5 | 5 . Treads . | . . Legs 2 | 2 . Wheels 482 | 136 346 Hover . | . . Flight . | . . Fastest Speed 50 | 50 80 Average Speed 79 | 79 80 Slowest Speed 120 | 120 80 Overloaded Moves . | . . Propulsion Burnouts . | . . Robots Hopped . | . . Cave-ins Triggered . | . . Exploration Rate (%) 29 | 8 50 Regions Visited 1 Branch Regions . Pre-discovered Areas . | . . Known Exits Taken . | . . Unknown Exits Taken 1 | 1 . Scrap Searched . | . . Spaces Dug . | . . Terrain Destroyed . | . . Melee . | . . Projectile . | . . AOE . | . . Actions | -11 -10 --------- Run | Scr Mat Total 561 | 180 381 Wait 2 | . 2 Move 488 | 142 346 Hop . | . . Pick Up . | . . Fast Attach 16 | 13 3 Attach . | . . Detach . | . . Swap 1 | 1 . Drop 7 | 5 2 Fire 42 | 19 23 Melee . | . . Ram . | . . Kick . | . . Crush 5 | . 5 Escape Stasis . | . . Rewire . | . . Trap . | . . Miscellaneous . | . . Route ------- -11/Scrapyard -10/Materials (discovered 4 exits: [*Mat x3] / [Min]) History --------- Turn | Location | Event 7 | -11/Scrapyard | Upgraded with Propulsion slot (x3) 17 | -11/Scrapyard | Discovered new exit (range 15) 123 | -11/Scrapyard | Upgraded with Utility slot (x1) 184 | -11/Scrapyard | Entered Materials 317 | -10/Materials | Build established: Scavenger-Mutant 371 | -10/Materials | Discovered new exit (range 13) 396 | -10/Materials | Discovered new exit (range 3) 490 | -10/Materials | Core integrity fell below 50% 498 | -10/Materials | Discovered new exit (range 15) 506 | -10/Materials | Core integrity fell below 20% 527 | -10/Materials | Discovered new exit (range 14) 532 | -10/Materials | Destroyed by S-10 Pest with Light Assault Rifle Last Messages --------------- >>Trojan(Monitor) Trojan loaded successfully. Testing... Monitoring response positive. 00468_ Connecting with Recycling Unit... >>Recycling(Report) Matter reserves: 0 Inventory: Empty 00486_ G-34 Mercenary destroyed. 00497_ Slammed into S-10 Pest. 00498_ EXIT=FOUND 00498_ Slammed into S-10 Pest. 00501_ Acquired 8 matter. 00502_ Slammed into G-34 Mercenary. 00526_ Welding Torch destroyed. 00527_ EXIT=FOUND 00531_ Triggered Blade Trap. 00531_ Massive razor-sharp blades shoot up from within the floor. 00531_ Lgt. Treads severed. 00531_ Acquired Lgt. Treads. Map ----- +----------------------------------------------------+ | ???????????????????? ???????#????#????? | | ??????????????????????????????????????? | | ???????????? ??????o??????#??????####?? | | ???????????????????????????????#? #?? | | ????????????????#??????? ? ???? ? < #?? | | ????????????????????????????"?? ? #?? | | ????????????????????????????????+ +?? | | ????????????????????????"?"?"? ?# #?? | | ????????????????????? ? ?? ? ??# # | | ??????????????? ??????###???????# #?? | | ?????????????????################ # | | ??????#??????? ??# #?? | | ???????#???? ????# #?# | | ?????????#???????# #?? | | ?????????????????# ############ #?? | | ????????? ??? ???# #???#??#?#?# #?? | | ????????? ???????# #?#?##????## #?# | | ????????? ?? ????# #??######### # | | ??????? ??#???#?## ##### """!# # | | ??????????# ???#?# #?#?# "Y"%#% # | | ??????????# ?????# #?### ==+% + " | | ??????????# ????# ##?## # # " | | ??????????# ????# #???# # # " | | ??????????# ?#?# #?#?# # # | | ??????????# #### ##??##+##### ### | | #????????## @ s ##??# # # | | ??????????# #???# "" # # | | ????#?????# !! ""#?# Y" + + | | ??????????# !! ""### "" # # | | ?????????## !! T"### # ### | | ?????#????# ""### # #?# | | ??????????# w ""#?######## ### | | ????????? !!! #####?####?# | | ????????< !! #???#?###### ### | | ??????? !! #????#?#??## #?? | | ??????########"T"## ##?#?????#?## #?? | | ?????????????#####? #????##???### #?? | | ??????????????????? #?#????????## ##? | | ????????#?????????? #??????????? ?# | | ??????????????????? ??? ??????? ?? | | ??????????????????? ??? ?????? #? | | ????????????????????? ??????? ?? ?# | | ???????????????????????#??#??#?# ## | | ???????????????????????????????######## | | ???????????????????????????#?????# | | ???????????????????????"????????## | | ???????????????????????????#?? ??# """ | | ???????????????????????????????### """ | | ?????????????????????????????????# """ | | ?????????????????????????????????# | +----------------------------------------------------+ Best States ------------- Heat Dissipation 25 Energy Generation 10 Energy Capacity 250 Matter Stores 300 Matter Capacity 300 Sight Range 16 Terrain Scan Range 16 Terrain Scan Density 60 Evasion (%) 44 Recoil Reduction 1 Item Schematics ----------------- None Robot Schematics ------------------ None Fabricated ------------ Nothing Alien Tech Used ----------------- None Achievements -------------- None Challenges ------------ None RPGLIKE | -11 -10 --------- Run | Scr Mat Levels Raised . | . . XP Earned 3130 | 3000 130 XP Spent 2900 | 2900 . Upgrades 4 | 4 . Propulsion Slot 3 | 3 . Utility Slot 1 | 1 . Protomatter Created . | . . Protomatter Decayed . | . . Game ------ Seed ShieldTiamatPick Manual? 0 Play Time 00:15:09 Cumulative 49.4 hours Start 2020.03.25 @ 01:23:18 End 2020.03.25 @ 01:35:47 Sessions 1 Manual Loads 0 Difficulty Rogue Special Mode Winter2019/RPGLIKE Game No. 8 Rogue 8 Adventurer 0 Explorer 0 Win Type - Total 1 Types 1/0/0/0/0/0/0 Lore% 38 Gallery% 46 Achievement% 53 Wizard Run 0 Options --------- ASCII 1 Keyboard 1 Movement Numpad Keybinds 0 Fullscreen 1 Font 16/SmallcapsGlow Map View 75x55 Tactical HUD 1 Map Filters NONE Filters NONE Steam 1 RUN: db94b85f-1419-453b-8e5d-95df52a8f7a5